Cogmind - Beta 9 @@@ ROGUE MODE // 2019.10.27 @ 18:35:31 Player: alice_fexa Result: Destroyed self with Mini Smartbomb Launcher Performance ------------- Evolutions (6) 3000 Regions Visited (15) 3000 Robots Destroyed (192) 960 Value Destroyed (7026) 7026 Prototype IDs (22) 440 Alien Tech Used (1) 200 Bonus (821) 821 TOTAL SCORE: 15447 Bonus ------- High Alert Combat Kills 250 Follower Combat Kills 304 Met Data Miner 300 Friendly Fire -33 Cogmind --------- Core Integrity 0/1150 Matter 130/300 Energy 100/100 System Corruption 10% Temperature Cool (0) Location -4/Factory Parts ------- Power (2) Propulsion (4) Utility (12) Large Storage Unit Large Storage Unit Large Storage Unit Advanced Signal Interpreter Experimental Targeting Computer Advanced Armor Integrity Analyzer Weapon (2) Mini Smartbomb Launcher Inventory (22) Micro Fission Core Light Antimatter Reactor Light Antimatter Reactor Medium Treads Medium Treads Advanced Medium Treads Advanced Heat Sink Improved Coolant Injector Advanced Signal Interpreter Advanced Signal Interpreter Advanced Particle Charger Experimental Thermal Shield Improved Dynamic Insulation System Improved System Backup Module Improved System Backup Module Long-range Proton Cannon Long-range Proton Cannon Coil Gun KE Penetrator KE Penetrator Advanced EMP Blaster Makeshift Axe Peak State ------------ Power Micro Fission Core Micro Fission Core Propulsion Flexi-carbon Leg Myomer Leg Myomer Leg Myomer Leg Utility Advanced Heat Sink Advanced Heat Sink Advanced Heat Sink Coolant Injector Large Storage Unit Large Storage Unit Large Storage Unit Large Storage Unit Advanced Signal Interpreter Experimental Targeting Computer Advanced Armor Integrity Analyzer Improved System Backup Module Weapon Cooled Plasma Rifle Coil Gun Inventory Micro Fission Core Light Antimatter Reactor Light Antimatter Reactor Medium Treads Medium Treads Advanced Medium Treads Myomer Leg Advanced Heat Sink Improved Coolant Injector Advanced Signal Interpreter Advanced Signal Interpreter Advanced Particle Charger Experimental Thermal Shield Improved Dynamic Insulation System Improved System Backup Module Phase Gun Long-range Proton Cannon Long-range Proton Cannon Advanced Plasma Cannon Heavy Phase Cannon High-powered Shotgun KE Penetrator KE Penetrator Advanced EMP Blaster Advanced EMP Blaster Mini Smartbomb Launcher Makeshift Axe [Rating: 109] Favorites ----------- Power Micro Fission Core Engine Light Ion Engine Power Core Micro Fission Core Propulsion Light Treads Treads Light Treads Leg Enhanced Flexi-carbon Leg Wheel Armored Huge Wheel Hover Unit Combat Gravmag System Utility Large Storage Unit Device Improved Sensor Array Storage Large Storage Unit Processor Advanced Signal Interpreter Hackware Hacking Suite Protection Improved Medium Armor Plating Weapon Light Assault Rifle Energy Gun Plasma Rifle Energy Cannon Heavy Particle Cannon Ballistic Gun Light Assault Rifle Ballistic Cannon Improved Light Cannon Launcher Mini Grenade Launcher Slashing Weapon Makeshift Axe Build | -11 -10 -9 -8 -7 -7 -7 -7 -6 -6 -6 -6 -6 -5 -5 -4 ------- Run | Scr Mat Mat Mat Fac Low Low Zio Pro Fac Low Low Dat Pro Fac Fac Slots Evolved 12 | . . 2 2 2 . . . . 2 . . . . 2 2 Power 1 | . . . . . . . . . . . . . . 1 . Propulsion 2 | . . . . 1 . . . . . . . . . . 1 Utility 9 | . . 2 2 1 . . . . 2 . . . . 1 1 Weapon . | . . . . . . . . . . . . . . . . Parts Attached 233 | 6 14 19 13 43 4 4 5 2 7 18 2 . 12 16 68 Power 24 | 1 2 2 3 4 . . . . 1 1 . . 1 3 6 Engine 9 | 1 2 2 3 1 . . . . . . . . . . . Core 15 | . . . . 3 . . . . 1 1 . . 1 3 6 Reactor . | . . . . . . . . . . . . . . . . Propulsion 41 | 2 2 3 2 10 . . 3 . 1 . . . 2 1 15 Treads 28 | 2 2 3 2 9 . . 1 . . . . . . . 9 Leg 9 | . . . . 1 . . . . . . . . 2 . 6 Wheel 3 | . . . . . . . 2 . 1 . . . . . . Hover 1 | . . . . . . . . . . . . . . 1 . Flight . | . . . . . . . . . . . . . . . . Utility 90 | 1 4 4 2 18 2 . 1 . 2 11 1 . 6 5 33 Device 59 | . . 2 . 13 2 . . . 1 7 1 . 4 3 26 Storage 9 | 1 4 . 1 . . . . . . 1 . . . 2 . Processor 7 | . . 2 1 2 . . . . . . . . . . 2 Hackware 1 | . . . . . . . . . 1 . . . . . . Protection 14 | . . . . 3 . . 1 . . 3 . . 2 . 5 Artifact . | . . . . . . . . . . . . . . . . Weapon 78 | 2 6 10 6 11 2 4 1 2 3 6 1 . 3 7 14 Energy Gun 23 | . . 3 1 4 1 . 1 . . 3 . . 1 3 6 Energy Cannon 6 | . . . 1 . . . . 1 1 . . . . 1 2 Ballistic Gun 30 | 2 6 4 2 6 1 2 . . 1 1 . . . 1 4 Ballistic Cannon 2 | . . 2 . . . . . . . . . . . . . Launcher 13 | . . 1 2 . . 2 . 1 . 1 1 . 2 1 2 Special Weapon . | . . . . . . . . . . . . . . . . Impact Weapon . | . . . . . . . . . . . . . . . . Slashing Weapon 4 | . . . . 1 . . . . 1 1 . . . 1 . Piercing Weapon . | . . . . . . . . . . . . . . . . Special Melee Weapon . | . . . . . . . . . . . . . . . . Unidentified Prototypes 9 | . . 2 1 . . . . . 1 1 . . 2 1 1 Parts Lost 72 | . . 1 4 19 . 1 . . . 2 1 . 4 7 33 Power 11 | . . . 1 3 . . . . . 1 . . . 2 4 Propulsion 23 | . . 1 2 6 . 1 . . . . . . 1 . 12 Utility 21 | . . . . 3 . . . . . 1 1 . 2 4 10 Weapon 17 | . . . 1 7 . . . . . . . . 1 1 7 Highest Loss Streak 13 | . . 1 2 7 . 1 . . . 2 1 . 3 3 13 Average Slot Usage (%) 96 | . 99 99 99 97 99 96 94 92 93 91 92 93 87 95 94 Engine 3 | . 14 11 8 3 . . . . . . . . . . . Core 5 | . . . . 3 7 7 7 7 6 6 6 6 6 10 9 Treads 12 | . 27 21 17 21 15 11 7 . . . . . . . 13 Leg 2 | . . . . . 7 7 3 . . . . . . 11 5 Wheel 3 | . . . . . . . 6 15 13 12 12 12 10 . . Device 13 | . . 11 9 13 9 15 7 7 13 13 17 18 17 17 23 Storage 22 | . 27 22 27 23 23 23 23 23 20 19 18 18 18 22 19 Processor 12 | . . 11 18 15 20 15 15 15 13 12 12 12 12 10 11 Hackware 1 | . . . . . . . . . 6 6 6 6 4 . . Protection 2 | . . . . . . . 7 7 6 5 6 6 5 9 3 Energy Gun 4 | . . 2 9 3 11 7 7 7 6 7 3 . 1 1 4 Energy Cannon 1 | . . . 2 2 . . . 3 1 . . . . 2 . Ballistic Gun 6 | . 27 15 4 6 2 6 7 2 . 1 . . . 1 4 Naked Turns . | . . . . . . . . . . . . . . . . Heaviest Build 106 | 12 37 43 64 73 62 62 64 68 70 75 73 69 79 106 99 Greatest Support 95 | 40 40 40 40 60 42 42 42 40 40 40 40 40 56 56 95 Greatest Overweight (x) 11 | . 11 1 3 1 1 2 2 1 1 1 1 1 2 1 4 Average Overweight (x) . | . . . 1 . 1 1 1 1 1 1 1 1 1 1 . Largest Inventory Capacity 34 | 6 16 16 22 22 22 22 22 22 22 22 22 22 22 34 28 Average Capacity 22 | 5 13 16 21 22 22 22 22 22 22 22 22 22 22 28 27 Most Carried 28 | 2 16 16 22 22 22 22 22 22 22 22 22 22 22 28 28 Average Carried 21 | 1 10 15 20 20 21 22 21 22 21 21 21 22 21 25 27 Final Capacity 22 | . . . . . . . . . . . . . . . 22 Final Carried 22 | . . . . . . . . . . . . . . . 22 Class Distribution -------------------- 54% | Hauler-Mutant 32% | Scavenger-Mutant 12% | Mutant Dominant Class ---------------- Mutant | -10/Materials Mutant | -9/Materials Hauler-Mutant | -8/Materials Hauler-Mutant | -7/Factory Hauler-Mutant | -7/Lower Caves Hauler-Mutant | -7/Lower Caves Hauler-Mutant | -7/Zion Hauler-Mutant | -6/Proximity Caves Hauler-Mutant | -6/Factory Hauler-Mutant | -6/Lower Caves Hauler-Mutant | -6/Lower Caves Hauler-Mutant | -6/Data Miner Hauler-Mutant | -5/Proximity Caves Scavenger-Mutant | -5/Factory Scavenger-Mutant | -4/Factory Resources | -11 -10 -9 -8 -7 -7 -7 -7 -6 -6 -6 -6 -6 -5 -5 -4 ----------- Run | Scr Mat Mat Mat Fac Low Low Zio Pro Fac Low Low Dat Pro Fac Fac Matter Collected 3978 | 213 321 392 273 606 99 103 50 20 . 238 102 . 170 169 1222 Remotely . | . . . . . . . . . . . . . . . . Salvage Created 8257 | . 518 609 736 1400 121 60 . . . 305 59 . 497 476 3476 Parts 444 | . 45 48 56 85 7 7 . . . 14 2 . 18 28 134 Haulers Intercepted 7 | . 2 2 2 . . . . . . . . . . 1 . Recyclers Shooed 13 | . 1 1 1 . . . . . . . . . . . 10 Parts Field Recycled . | . . . . . . . . . . . . . . . . Retrieved Matter . | . . . . . . . . . . . . . . . . Parts Self-Destructed 43 | . . . . . 6 8 . 5 . 5 7 . 12 . . Prevented 23 | . . . . . 4 . . 1 . 11 . . 7 . . Kills | -11 -10 -9 -8 -7 -7 -7 -7 -6 -6 -6 -6 -6 -5 -5 -4 ------- Run | Scr Mat Mat Mat Fac Low Low Zio Pro Fac Low Low Dat Pro Fac Fac Combat Hostiles Destroyed 141 | . 13 13 19 20 2 7 . . . 4 3 . 11 9 40 Melee 1 | . . . . . . . . . . . 1 . . . . Guns 80 | . 13 3 12 13 2 1 . . . 1 1 . . 4 30 Cannons 9 | . . 4 . 5 . . . . . . . . . . . AOE 43 | . . 6 7 2 . 6 . . . 1 1 . 10 5 5 Classes Destroyed 15 | . 4 6 . 3 . . . . . 1 . . . 1 . Worker 12 | . . 2 . 4 . . . . . . . . . . 6 Builder 11 | . 1 1 . 5 . . . . . . . . . . 4 Tunneler 3 | . . 1 1 . . . . . . . . . . 1 . Hauler 7 | . 2 2 2 . . . . . . . . . . 1 . Recycler 9 | . . . . 4 . . . . . . . . . . 5 Mechanic 1 | . . 1 . . . . . . . . . . . . . Operator 1 | . . . . . . . . . . . . . . 1 . Watcher 7 | . . 2 4 1 . . . . . . . . . . . Swarmer 45 | . 6 4 10 3 . 7 . . . . 3 . 8 4 . Grunt 42 | . 7 7 5 8 . . . . . 2 . . 2 1 10 Brawler 2 | . . . . . . . . . . 1 . . 1 . . Duelist 2 | . . 1 1 . . . . . . . . . . . . Sentry 14 | . . 1 3 4 1 . . . . 1 . . . . 4 Hunter 14 | . . . . 3 . . . . . . . . . 2 9 Programmer 22 | . . . . 2 1 . . . . . . . . 2 17 Best Kill Streak 17 | . 5 7 8 6 1 4 . . . 3 2 . 7 5 17 Combat Bots Only 14 | . 4 4 7 3 1 4 . . . 3 2 . 7 4 14 Max Kills in Single Turn 4 | . 1 3 3 4 1 2 . . . 1 1 . 3 2 3 Gunslinging . | . . . . . . . . . . . . . . . . Exploded 3 | . . 3 3 1 . 2 . . . 1 1 . 3 2 2 Melee 1 | . . . . . . . . . . . 1 . . . . Uniques/NPCs Destroyed . | . . . . . . . . . . . . . . . . Combat | -11 -10 -9 -8 -7 -7 -7 -7 -6 -6 -6 -6 -6 -5 -5 -4 -------- Run | Scr Mat Mat Mat Fac Low Low Zio Pro Fac Low Low Dat Pro Fac Fac Damage Taken 13445 | . 365 602 737 2278 161 103 . 59 45 498 437 . 354 1412 6394 Core 2038 | . 40 73 72 316 11 31 . . . 46 84 . 44 135 1186 Absorbed by Shields . | . . . . . . . . . . . . . . . . Core Remaining (%) 80 | 100 84 81 86 . . . . 48 . . . . 79 86 . Volleys Fired 475 | . 47 37 63 76 11 8 . 6 . 16 15 . 20 31 145 Largest 2 | . 2 2 2 2 2 2 . 1 . 2 1 . 1 2 2 Hottest 140 | . 40 112 112 125 94 94 . 75 . 140 65 . 65 108 114 Shots Fired 825 | . 94 72 120 137 15 10 . 6 . 32 15 . 20 49 255 Gun 683 | . 94 55 97 105 15 4 . 6 . 27 10 . 9 39 222 Cannon 90 | . . 15 18 32 . . . . . . . . . 5 20 Launcher 52 | . . 2 5 . . 6 . . . 5 5 . 11 5 13 Special . | . . . . . . . . . . . . . . . . Kinetic 405 | . 94 64 34 76 4 2 . . . . . . . 21 110 Thermal 279 | . . 6 81 49 4 2 . 6 . 11 . . . 9 111 Explosive 34 | . . 2 5 . . 6 . . . . 5 . 3 5 8 Electromagnetic 107 | . . . . 12 7 . . . . 21 10 . 17 14 26 Robot Hit Streak 38 | . 12 11 13 37 32 2 . 3 . 4 3 . 8 7 38 Robot Miss Streak 4 | . 4 3 4 2 1 2 . 3 . 2 4 . 2 3 3 Penetration Max 1 | . . . . 1 . . . . . . . . . . 1 Secondary Targets 10 | . 1 . . 1 . . . . . . . . . . 8 Max Gunslinging Chain 1 | . 1 . . 1 . . . . . . . . . . 1 Shots Hit Robots 619 | . 64 52 81 117 13 2 . 2 . 22 7 . 11 31 217 Core Hits 359 | . 29 35 42 66 5 13 . . . 8 9 . 20 20 112 Critical Hits 20 | . 1 1 . . . . . . . . . . . 1 17 Critical Kills 9 | . . . . . . . . . . . . . . 1 8 Critical Parts Destroyed 10 | . 1 1 . . . . . . . . . . . . 8 Melee Attacks 6 | . . . . 1 . . . . 1 1 2 . . 1 . Impact . | . . . . . . . . . . . . . . . . Slashing 6 | . . . . 1 . . . . 1 1 2 . . 1 . Piercing . | . . . . . . . . . . . . . . . . Sneak Attacks . | . . . . . . . . . . . . . . . . Combat Hostiles . | . . . . . . . . . . . . . . . . Follow-up Attacks . | . . . . . . . . . . . . . . . . Damage Inflicted 19406 | . 663 1228 1941 3819 237 512 . 46 . 565 356 . 922 1163 7954 Guns 10974 | . 663 536 1016 2092 237 37 . 46 . 383 71 . 83 515 5295 Cannons 1938 | . . 247 350 725 . . . . . . . . . 107 509 Explosions 6414 | . . 445 575 1002 . 475 . . . 182 205 . 839 541 2150 Melee 80 | . . . . . . . . . . . 80 . . . . Ramming . | . . . . . . . . . . . . . . . . Kinetic 6178 | . 663 701 305 1413 60 18 . . . . . . . 325 2693 Thermal 5809 | . . 82 1061 1379 70 19 . 46 . 159 . . 86 201 2706 Explosive 3752 | . . 266 575 802 . 475 . . . . 205 . 159 450 820 Electromagnetic 3587 | . . 179 . 225 107 . . . . 406 71 . 677 187 1735 Impact . | . . . . . . . . . . . . . . . . Slashing 80 | . . . . . . . . . . . 80 . . . . Piercing . | . . . . . . . . . . . . . . . . Highest Corruption 12 | . 2 . . 4 3 2 . . . 1 . . 1 1 12 Average Corruption 4 | . 2 . . 2 2 1 . . . 1 . . 1 1 7 Corruption Purged 25 | . . . . 6 1 2 . . . 1 . . . . 15 Effects 103 | . 1 . . 14 3 3 . . . . . . . 3 79 Message Errors 24 | . 1 . . 4 2 2 . . . . . . . 2 13 Matter Fused 18 | . . . . 1 . . . . . . . . . . 17 Heat Flow Errors 6 | . . . . 2 . 1 . . . . . . . . 3 Energy Discharges 10 | . . . . 1 . . . . . . . . . . 9 Parts Rejected 2 | . . . . . . . . . . . . . . . 2 Data Loss (minor) 9 | . . . . 3 . . . . . . . . . . 6 Data Loss (major) 1 | . . . . . . . . . . . . . . . 1 Misfires 2 | . . . . . . . . . . . . . . . 2 Alerts 1 | . . . . . . . . . . . . . . . 1 Misdirections 3 | . . . . . . . . . . . . . . . 3 Targeting Errors 24 | . . . . 3 1 . . . . . . . . 1 19 Weapon Failures 3 | . . . . . . . . . . . . . . . 3 Overload Shots 1 | . . . . . . . . . . . . . . . 1 Overflow Damage 541 | . . 15 3 238 . 31 . . . 12 25 . 52 47 118 Projectiles 29 | . . 5 . 6 . . . . . . . . . 18 . Explosions 512 | . . 10 3 232 . 31 . . . 12 25 . 52 29 118 Melee . | . . . . . . . . . . . . . . . . Knockbacks 4 | . . 4 . . . . . . . . . . . . . Impact . | . . . . . . . . . . . . . . . . Kinetic 4 | . . 4 . . . . . . . . . . . . . Secondary . | . . . . . . . . . . . . . . . . Self-Inflicted Damage 882 | . . 63 . 260 . 31 . . . 46 . . 20 158 304 Shots 26 | . . 3 . 4 . 1 . . . 2 . . 2 5 9 Rammed . | . . . . . . . . . . . . . . . . Targets Rammed . | . . . . . . . . . . . . . . . . Kicked . | . . . . . . . . . . . . . . . . Crushed . | . . . . . . . . . . . . . . . . Highest Temperature 263 | . 9 . . 263 106 113 . 144 . 225 . . . 66 193 Average Temperature 64 | . 6 . . 76 38 44 . 75 . 89 . . . 26 68 Received Heat Transfer 1698 | . 87 180 252 555 30 . . . 12 90 9 . 18 69 396 Siege Activations . | . . . . . . . . . . . . . . . . Robots Corrupted 8 | . . . . . . . . . . 2 . . 1 . 5 Combat Hostiles 8 | . . . . . . . . . . 2 . . 1 . 5 Parts Fried 15 | . . . . 1 1 . . . . 2 . . . . 11 Impact Corruptions . | . . . . . . . . . . . . . . . . Robots Melted . | . . . . . . . . . . . . . . . . Combat Hostiles . | . . . . . . . . . . . . . . . . Parts Melted 20 | . . 1 8 3 . . . . . . . . . . 8 Heat Transferred 10259 | . . 185 2072 2323 111 37 . 100 . 311 . . 100 198 4822 Parts Sabotaged . | . . . . . . . . . . . . . . . . Parts Stolen . | . . . . . . . . . . . . . . . . Parts Stripped . | . . . . . . . . . . . . . . . . Power Chain Reactions 5 | . . 2 . 2 . . . . . . . . 1 . . Missiles Intercepted . | . . . . . . . . . . . . . . . . Alert | -11 -10 -9 -8 -7 -7 -7 -7 -6 -6 -6 -6 -6 -5 -5 -4 ------- Run | Scr Mat Mat Mat Fac Low Low Zio Pro Fac Low Low Dat Pro Fac Fac Peak Influence 786 | . 212 285 397 247 . . . . 68 . . . . 187 786 Average Influence 112 | . 56 88 116 104 . . . . 47 . . . . 93 181 Maximum Alert Level 3 | . 1 1 1 1 . . . . . . . . . . 3 Low Security (%) 85 | . . . . . . . . . . . . . . . . Level 1 9 | . . . . . . . . . . . . . . . . Level 2 4 | . . . . . . . . . . . . . . . . Level 3 . | . . . . . . . . . . . . . . . . Level 4 . | . . . . . . . . . . . . . . . . Level 5 . | . . . . . . . . . . . . . . . . High Security . | . . . . . . . . . . . . . . . . Max Security . | . . . . . . . . . . . . . . . . Squads Dispatched 31 | . 3 2 . 9 . . . . . . . . . 4 13 Investigation 5 | . 1 . . 1 . . . . . . . . . 1 2 Extermination 8 | . . . . 2 . . . . . . . . . 1 5 Reinforcement 10 | . 2 2 . 3 . . . . . . . . . 2 1 Assault 1 | . . . . . . . . . . . . . . . 1 Garrison 7 | . . . . 3 . . . . . . . . . . 4 Intercept . | . . . . . . . . . . . . . . . . Construction Impeded 3 | . . . . 1 . . . . . . . . . 1 1 Haulers Reinforced 1 | . . . . . . . . . . . . . . 1 . Stealth | -11 -10 -9 -8 -7 -7 -7 -7 -6 -6 -6 -6 -6 -5 -5 -4 --------- Run | Scr Mat Mat Mat Fac Low Low Zio Pro Fac Low Low Dat Pro Fac Fac Distress Signals 7 | . 1 . 2 1 . . . . . . . . . . 3 Communications Jammed . | . . . . . . . . . . . . . . . . Distress Signals . | . . . . . . . . . . . . . . . . Times Spotted 227 | . 20 23 34 40 2 5 . 3 4 11 7 . 15 12 51 Peak Tracking Total 8 | . 4 5 8 7 1 4 . 2 4 7 5 . 8 4 8 Tactical Retreats 16 | . . 3 2 5 . . . 1 . 4 . . 1 . . Traps | -11 -10 -9 -8 -7 -7 -7 -7 -6 -6 -6 -6 -6 -5 -5 -4 ------- Run | Scr Mat Mat Mat Fac Low Low Zio Pro Fac Low Low Dat Pro Fac Fac Traps Triggered 13 | . 4 . . 5 . . . . . . . . . . 4 Indirectly . | . . . . . . . . . . . . . . . . Trap Hack Attempts . | . . . . . . . . . . . . . . . . Triggered . | . . . . . . . . . . . . . . . . Disarmed . | . . . . . . . . . . . . . . . . Reprogrammed . | . . . . . . . . . . . . . . . . Reused . | . . . . . . . . . . . . . . . . Traps Extracted . | . . . . . . . . . . . . . . . . Installed . | . . . . . . . . . . . . . . . . Triggered . | . . . . . . . . . . . . . . . . Machines | -11 -10 -9 -8 -7 -7 -7 -7 -6 -6 -6 -6 -6 -5 -5 -4 ---------- Run | Scr Mat Mat Mat Fac Low Low Zio Pro Fac Low Low Dat Pro Fac Fac Machines Disabled 18 | . . 2 . 5 . . . . . . . . 2 3 6 Max in Single Turn 4 | . . 1 . 2 . . . . . . . . 2 2 4 Garrison Access 2 | . . . . . . . . . 1 . . . . . 1 Machines Sabotaged . | . . . . . . . . . . . . . . . . Garrisons Compromised . | . . . . . . . . . . . . . . . . Overloaded Fab Kills . | . . . . . . . . . . . . . . . . Fab Network Shutdowns . | . . . . . . . . . . . . . . . . Hacking | -11 -10 -9 -8 -7 -7 -7 -7 -6 -6 -6 -6 -6 -5 -5 -4 --------- Run | Scr Mat Mat Mat Fac Low Low Zio Pro Fac Low Low Dat Pro Fac Fac Machines Accessed 39 | . 5 2 9 7 . . . . 3 . . 4 . 5 4 Terminals 30 | . 5 2 9 6 . . . . 2 . . . . 5 1 Fabricators 2 | . . . . . . . . . . . . . . . 2 Repair Stations 1 | . . . . 1 . . . . . . . . . . . Recycling Units . | . . . . . . . . . . . . . . . . Scanalyzers . | . . . . . . . . . . . . . . . . Garrison Access 2 | . . . . . . . . . 1 . . . . . 1 Total Hacks 122 | . 19 6 26 22 . . . . 5 . . 27 . 9 8 Successful 79 | . 8 2 20 14 . . . . 2 . . 27 . 2 4 Failed 43 | . 11 4 6 8 . . . . 3 . . . . 7 4 Catastrophic 12 | . 3 . 2 1 . . . . . . . . . 5 1 Database Lockouts . | . . . . . . . . . . . . . . . . Manual 55 | . 19 6 17 8 . . . . . . . . . 5 . Terminals 86 | . 19 6 26 20 . . . . 4 . . . . 9 2 Fabricators 4 | . . . . . . . . . . . . . . . 4 Repair Stations 2 | . . . . 2 . . . . . . . . . . . Recycling Units . | . . . . . . . . . . . . . . . . Scanalyzers . | . . . . . . . . . . . . . . . . Garrison Access 3 | . . . . . . . . . 1 . . . . . 2 Terminal Hacks 52 | . 1 1 10 10 . . . . 1 . . 27 . 2 . Record 11 | . . . . . . . . . . . . 11 . . . Part Schematic 7 | . . . . . . . . . . . . 7 . . . Robot Schematic 6 | . . . . . . . . . . . . 6 . . . Prototype ID Bank 5 | . . . 1 1 . . . . . . . 3 . . . Branch Access Points 3 | . . . . 1 . . . . 1 . . . . 1 . Fabricator Index 1 | . . . . 1 . . . . . . . . . . . Alert Level 4 | . . . 2 1 . . . . . . . . . 1 . Unreport Threat 7 | . 1 1 4 1 . . . . . . . . . . . Locate Traps 2 | . . . 1 1 . . . . . . . . . . . Hauler Manifests 1 | . . . . 1 . . . . . . . . . . . Registered Prototypes 1 | . . . . 1 . . . . . . . . . . . Zone Layout 4 | . . . 2 2 . . . . . . . . . . . Fabricator Hacks 4 | . . . . . . . . . . . . . . . 4 Load Schematic 2 | . . . . . . . . . . . . . . . 2 Build 2 | . . . . . . . . . . . . . . . 2 Repair Station Hacks 2 | . . . . 2 . . . . . . . . . . . Scan Component 1 | . . . . 1 . . . . . . . . . . . Repair 1 | . . . . 1 . . . . . . . . . . . Recycling Unit Hacks . | . . . . . . . . . . . . . . . . Scanalyzer . | . . . . . . . . . . . . . . . . Garrison Access Hacks 1 | . . . . . . . . . 1 . . . . . . Seal Access 1 | . . . . . . . . . 1 . . . . . . Unauthorized Hacks 48 | . 17 4 22 5 . . . . . . . . . . . Terminals 20 | . 7 1 10 2 . . . . . . . . . . . Track 10 | . 3 . 6 1 . . . . . . . . . . . Botnet 10 | . 4 1 4 1 . . . . . . . . . . . Fabricators . | . . . . . . . . . . . . . . . . Repair Stations . | . . . . . . . . . . . . . . . . Recycling Units . | . . . . . . . . . . . . . . . . Scanalyzers . | . . . . . . . . . . . . . . . . Garrison Access . | . . . . . . . . . . . . . . . . Data Cores Recovered . | . . . . . . . . . . . . . . . . Used . | . . . . . . . . . . . . . . . . Hacking Detections 30 | . 5 2 7 5 . . . . 2 . . . . 5 4 Full Trace Events 4 | . 2 . . . . . . . . . . . . 1 1 Feedback Events . | . . . . . . . . . . . . . . . . Feedback Blocked . | . . . . . . . . . . . . . . . . Robot Schematics Acquired 6 | . . . . . . . . . . . . 6 . . . Robots Built . | . . . . . . . . . . . . . . . . Matter . | . . . . . . . . . . . . . . . . Time . | . . . . . . . . . . . . . . . . Total Robot Build Rating . | . . . . . . . . . . . . . . . . Part Schematics Acquired 7 | . . . . . . . . . . . . 7 . . . Parts Built 2 | . . . . . . . . . . . . . . . 2 Matter 603 | . . . . . . . . . . . . . . . 603 Time 236 | . . . . . . . . . . . . . . . 236 Total Part Build Rating 11 | . . . . . . . . . . . . . . . 11 Parts Repaired 1 | . . . . 1 . . . . . . . . . . . Time 8 | . . . . 8 . . . . . . . . . . . Parts Recycled . | . . . . . . . . . . . . . . . . Recycled Matter . | . . . . . . . . . . . . . . . . Retrieved Matter . | . . . . . . . . . . . . . . . . Retrieved Components . | . . . . . . . . . . . . . . . . Parts Scanalyzed . | . . . . . . . . . . . . . . . . Part Schematics Acquired . | . . . . . . . . . . . . . . . . Parts Damaged . | . . . . . . . . . . . . . . . . Bothacking | -11 -10 -9 -8 -7 -7 -7 -7 -6 -6 -6 -6 -6 -5 -5 -4 ------------ Run | Scr Mat Mat Mat Fac Low Low Zio Pro Fac Low Low Dat Pro Fac Fac Used RIF Installer . | . . . . . . . . . . . . . . . . Robots Hacked . | . . . . . . . . . . . . . . . . Non-combat . | . . . . . . . . . . . . . . . . Combat . | . . . . . . . . . . . . . . . . Robot Hacks Applied . | . . . . . . . . . . . . . . . . Relay Couplers Released 2 | . . . . . . . . . . . . . . . 2 Machine Destruction 2 | . . . . . . . . . . . . . . . 2 Robots Rewired 2 | . . . . . . . . . . 2 . . . . . Allies Hacked . | . . . . . . . . . . . . . . . . Hacks Repelled . | . . . . . . . . . . . . . . . . Allies | -11 -10 -9 -8 -7 -7 -7 -7 -6 -6 -6 -6 -6 -5 -5 -4 -------- Run | Scr Mat Mat Mat Fac Low Low Zio Pro Fac Low Low Dat Pro Fac Fac Total Allies 5 | . . . . . . . 2 . . 2 . . 1 . . Largest Group 2 | . . . . . . . 2 2 . 2 2 1 2 . . Highest-Rated Group 114 | . . . . . . . 67 67 . 52 52 20 114 . . Highest-Rated Ally 94 | . . . . . . . 42 42 . 32 32 20 94 . . Total Orders . | . . . . . . . . . . . . . . . . Ally Attacks 40 | . . . . . . . . 10 . . 5 . 25 . . Total Damage 1292 | . . . . . . . . 301 . . 146 . 845 . . Kills 10 | . . . . . . . . 4 . . 1 . 5 . . Allies Corrupted . | . . . . . . . . . . . . . . . . Allies Melted . | . . . . . . . . . . . . . . . . Intel | -11 -10 -9 -8 -7 -7 -7 -7 -6 -6 -6 -6 -6 -5 -5 -4 ------- Run | Scr Mat Mat Mat Fac Low Low Zio Pro Fac Low Low Dat Pro Fac Fac Robot Analysis Total . | . . . . . . . . . . . . . . . . Derelict Logs Recovered 9 | . . . . . 1 2 2 1 . 2 . . 1 . . Drone Launches . | . . . . . . . . . . . . . . . . Drone Recoveries . | . . . . . . . . . . . . . . . . Exploration | -11 -10 -9 -8 -7 -7 -7 -7 -6 -6 -6 -6 -6 -5 -5 -4 ------------- Run | Scr Mat Mat Mat Fac Low Low Zio Pro Fac Low Low Dat Pro Fac Fac Turns Passed 12955 | 60 1063 893 1274 1926 607 511 810 336 525 910 436 95 519 862 2128 Spaces Moved 6509 | 33 525 411 526 611 320 275 583 270 355 606 279 80 387 448 800 Core 3 | 2 1 . . . . . . . . . . . . . . Treads 3464 | 31 524 411 526 611 320 275 236 . . . . . . . 530 Legs 741 | . . . . . . . . . . . . . 23 448 270 Wheels 2301 | . . . . . . . 347 270 355 606 279 80 364 . . Hover . | . . . . . . . . . . . . . . . . Flight . | . . . . . . . . . . . . . . . . Fastest Speed 50 | 50 160 160 180 160 172 172 105 105 105 105 105 105 105 150 120 Average Speed 147 | 153 160 174 180 178 172 177 136 105 105 105 105 105 109 150 170 Slowest Speed 600 | 160 600 180 220 180 172 185 185 105 105 105 105 105 180 150 240 Overloaded Moves . | . . . . . . . . . . . . . . . . Propulsion Burnouts . | . . . . . . . . . . . . . . . . Robots Hopped . | . . . . . . . . . . . . . . . . Cave-ins Triggered 1 | . . . . . . . . . . . . . . 1 . Exploration Rate (%) 44 | 4 78 42 55 20 47 54 73 55 9 65 46 69 56 10 21 Regions Visited 15 Branch Regions 8 Pre-discovered Areas 3 | . . . . . . . 2 . . . . 1 . . . Known Exits Taken 12 | . . . 1 1 1 1 1 1 1 1 1 1 1 1 . Unknown Exits Taken 3 | 1 1 1 . . . . . . . . . . . . . Scrap Searched 20 | . . . . . 4 3 5 1 . 3 2 . 2 . . Spaces Dug 12 | . . . . 1 . . . . 1 1 8 . . 1 . Terrain Destroyed 301 | . . 22 36 58 1 26 . . 1 1 26 . 16 42 72 Melee 4 | . . . . 1 . . . . 1 1 . . . 1 . Projectile 15 | . . 1 4 1 1 . . . . . . . . . 8 AOE 282 | . . 21 32 56 . 26 . . . . 26 . 16 41 64 Actions | -11 -10 -9 -8 -7 -7 -7 -7 -6 -6 -6 -6 -6 -5 -5 -4 --------- Run | Scr Mat Mat Mat Fac Low Low Zio Pro Fac Low Low Dat Pro Fac Fac Total 9055 | 40 674 522 735 1297 364 288 602 316 511 851 404 91 461 589 1310 Wait 1535 | . 44 25 100 538 16 . 5 38 133 165 106 12 32 71 250 Move 6494 | 32 524 410 525 610 319 274 582 269 354 605 278 79 386 447 800 Hop . | . . . . . . . . . . . . . . . . Pick Up 146 | 2 25 12 21 20 9 1 3 . 7 11 1 . 3 15 16 Fast Attach 72 | 6 5 6 4 7 1 . 2 1 3 5 . . 7 6 19 Attach 63 | . . 3 6 17 1 . 1 . 2 2 1 . 1 5 24 Detach 13 | . . . . . . . 1 . . . . . . 1 11 Swap 99 | . 9 10 3 19 2 4 2 1 2 12 1 . 4 5 25 Drop 133 | . 20 19 13 9 5 1 6 1 9 15 . . 8 7 20 Fire 475 | . 47 37 63 76 11 8 . 6 . 16 15 . 20 31 145 Melee 6 | . . . . 1 . . . . 1 1 2 . . 1 . Ram . | . . . . . . . . . . . . . . . . Kick . | . . . . . . . . . . . . . . . . Crush . | . . . . . . . . . . . . . . . . Escape Stasis . | . . . . . . . . . . . . . . . . Rewire 19 | . . . . . . . . . . 19 . . . . . Trap . | . . . . . . . . . . . . . . . . Miscellaneous . | . . . . . . . . . . . . . . . . Route ------- -11/Scrapyard -10/Materials (discovered 3 exits: *Mat x2 / [*Min]) -9/Materials (discovered 3 exits: *Mat x2 / [*Min]) -8/Materials (discovered 3 exits: *Fac / *Sto x2) -7/Factory (discovered 2 exits: *Low x2) -7/Lower Caves -7/Lower Caves (discovered 2 exits: *Fac / *Zio) -7/Zion -6/Proximity Caves -6/Factory (discovered 2 exits: *Low x2) -6/Lower Caves -6/Lower Caves -6/Data Miner -5/Proximity Caves -5/Factory (discovered 4 exits: *Fac x2 / *Upp x2) -4/Factory (discovered 1 exit: *Ext) History --------- Turn | Location | Event 19 | -11/Scrapyard | Discovered new exit (range 15) 61 | -11/Scrapyard | Entered Materials 309 | -10/Materials | Build established: Mutant 532 | -10/Materials | Discovered new exit (range 15) 824 | -10/Materials | Discovered new exit (range 16) 981 | -10/Materials | Discovered new exit (range 15) 1124 | -10/Materials | Entered another Materials area 1124 | -9/Materials | Evolved 2 slots: Utility x2 1533 | -9/Materials | Discovered new exit (range 7) 1794 | -9/Materials | Discovered new exit (range 7) 1981 | -9/Materials | Discovered new exit (range 8) 2017 | -9/Materials | Entered another Materials area 2017 | -8/Materials | Evolved 2 slots: Utility x2 2106 | -8/Materials | Discovered new exit (range 15) 2185 | -8/Materials | Identified exit to Storage 2308 | -8/Materials | Destroyed 7 combat bots 2315 | -8/Materials | Build established: Hauler-Mutant 2371 | -8/Materials | Discovered exit to Storage (range 5) 3258 | -8/Materials | Discovered new exit (range 17) 3289 | -8/Materials | Identified exit to Factory 3291 | -8/Materials | Entered Factory 3291 | -7/Factory | Evolved 2 slots: Propulsion x1, Utility x1 3302 | -7/Factory | Identified exit to Lower Caves 3364 | -7/Factory | Repaired Lgt. Treads 4112 | -7/Factory | Garrison activated, responded to threat 4147 | -7/Factory | Lost 5 parts (3n2w) 4409 | -7/Factory | Build established: Scavenger-Mutant 5005 | -7/Factory | Lost 4 parts (1p1n2u) 5070 | -7/Factory | Lost 7 parts (1p2n1u3w) 5217 | -7/Factory | Entered Lower Caves 5219 | -7/Lower Caves | Attracted the attention of an 0b10 checkpoint 5280 | -7/Lower Caves | Build established: Hauler-Mutant 5758 | -7/Lower Caves | Learned Factory interactive machine intel 5800 | -7/Lower Caves | Discovered new exit (range 14) 5823 | -7/Lower Caves | Identified exit to Lower Caves 5824 | -7/Lower Caves | Entered another Lower Caves area 5854 | -7/Lower Caves | Discovered new exit (range 11) 5869 | -7/Lower Caves | Identified exit to Factory 5911 | -7/Lower Caves | Learned Factory emergency access door positions 6122 | -7/Lower Caves | Core integrity fell below 50% 6227 | -7/Lower Caves | Learned Factory emergency access door positions 6323 | -7/Lower Caves | Discovered new exit (range 7) 6333 | -7/Lower Caves | Identified exit to Zion 6335 | -7/Lower Caves | Entered Zion 6653 | -7/Zion | Learned location of Extension (-4) 6696 | -7/Zion | Acquired unknown access codes intercepted by a Zionite 6727 | -7/Zion | Learned Factory terminal intel 6910 | -7/Zion | Learned location of Quarantine (-2) 6977 | -7/Zion | Given A8's code to call for help 7074 | -7/Zion | Discovered new exit (range 12) 7123 | -7/Zion | Gained Derelict followers 7142 | -7/Zion | Identified exit to Proximity Caves 7145 | -7/Zion | Entered Proximity Caves 7145 | -6/Proximity Caves | Accompanied by 2 allies 7159 | -6/Proximity Caves | Learned 4 Factory zone layouts 7283 | -6/Proximity Caves | Spotted B-75 Beast 7468 | -6/Proximity Caves | Discovered exit to Factory (range 10) 7481 | -6/Proximity Caves | Entered Factory 7481 | -6/Factory | Evolved 2 slots: Utility x2 7484 | -6/Factory | Loaded intel: 46 interactive machine locations 7485 | -6/Factory | Loaded intel: 20 terminal locations 7567 | -6/Factory | Identified exit to Lower Caves 8006 | -6/Factory | Entered Lower Caves 8050 | -6/Lower Caves | Learned Factory trap positions 8112 | -6/Lower Caves | Encountered a Warlord checkpoint 8158 | -6/Lower Caves | Attracted the attention of an 0b10 outpost 8657 | -6/Lower Caves | Learned location of 1 exit from Factory 8703 | -6/Lower Caves | Found Alien Artifact 8703 | -6/Lower Caves | Identified Core Expander 8703 | -6/Lower Caves | Installed Core Expander, added new Utility slot 8882 | -6/Lower Caves | Discovered new exit (range 14) 8915 | -6/Lower Caves | Identified exit to Lower Caves 8916 | -6/Lower Caves | Entered another Lower Caves area 8916 | -6/Lower Caves | Accompanied by 2 allies 9229 | -6/Lower Caves | Discovered new exit (range 16) 9351 | -6/Lower Caves | Identified exit to Data Miner 9352 | -6/Lower Caves | Entered Data Miner 9352 | -6/Data Miner | Accompanied by 1 ally 9352 | -6/Data Miner | Discovered new exit (range 6) 9372 | -6/Data Miner | Met Data Miner 9391 | -6/Data Miner | Learned location of Section 7 (-2) 9391 | -6/Data Miner | Acquired the access code to Warlord's prototype stash 9408 | -6/Data Miner | Received God Mode back door access code from Data Miner 9434 | -6/Data Miner | Identified exit to Proximity Caves 9447 | -6/Data Miner | Entered Proximity Caves 9447 | -5/Proximity Caves | Accompanied by 1 ally 9475 | -5/Proximity Caves | Escorted by Enhanced Grunt 9495 | -5/Proximity Caves | Attracted the attention of an 0b10 checkpoint 9592 | -5/Proximity Caves | Spotted B-75 Beast 9718 | -5/Proximity Caves | Learned Factory garrison access intel 9855 | -5/Proximity Caves | Destroyed 7 combat bots 9863 | -5/Proximity Caves | Lost 3 parts (1n2u) 9915 | -5/Proximity Caves | Discovered new exit (range 16) 9936 | -5/Proximity Caves | Found Prototype Device 9936 | -5/Proximity Caves | Identified Exp. Thermal Shield 9962 | -5/Proximity Caves | Identified exit to Factory 9966 | -5/Proximity Caves | Entered Factory 9966 | -5/Factory | Evolved 2 slots: Power x1, Utility x1 9967 | -5/Factory | Identified exit to Factory 9968 | -5/Factory | Loaded intel: 114 trap records 9970 | -5/Factory | Loaded intel: 4 garrison access locations 10035 | -5/Factory | Incoming investigation squad redirected 10072 | -5/Factory | Identified exit to Upper Caves 10213 | -5/Factory | Build established: Scavenger-Mutant 10386 | -5/Factory | Discovered exit to Factory (range 15) 10632 | -5/Factory | Lost 3 parts (1p1u1w) 10778 | -5/Factory | Crushed by falling debris 10815 | -5/Factory | Lost 3 parts (3u) 10828 | -5/Factory | Entered another Factory area 10828 | -4/Factory | Evolved 2 slots: Propulsion x1, Utility x1 10939 | -4/Factory | Discovered new exit (range 16) 11055 | -4/Factory | Lost 3 parts (1p1n1u) 11088 | -4/Factory | Identified exit to Extension 11611 | -4/Factory | System corruption reached 10% 11661 | -4/Factory | Garrison activated, responded to threat 11665 | -4/Factory | Lost 3 parts (1n1u1w) 11946 | -4/Factory | Fabricated Mni. Smartbomb Launcher (x1) 11983 | -4/Factory | Fabricated Exp. Targeting Computer (x1) 12427 | -4/Factory | Destroyed 14 combat bots 12433 | -4/Factory | Lost 10 parts (1p5n2u2w) 12809 | -4/Factory | Core integrity fell below 50% 12925 | -4/Factory | Garrison activated, responded to threat 12946 | -4/Factory | Core integrity fell below 20% 12956 | -4/Factory | Destroyed self with Mini Smartbomb Launcher Last Messages --------------- 12944_ K-01 Serf collects debris. 12944_ Penetrated by Slug. 12944_ Mic. Fission Core destroyed. 12945_ P-70 Sage destroyed. 12945_ Penetrated by Slug. 12946_ The unstable cave ceiling collapses. 12947_ Subcomponent Replicator disabled. 12948_ System corrupted: Energy discharge (-37). 12948_ K-01 Serf collects debris. 12949_ Lrg. Storage Unit destroyed. 12949_ System corrupted: Mni. Smartbomb Launcher failed to launch. 12950_ Penetrated by Slug. 12952_ K-01 Serf collects debris. 12952_ U-05 Engineer lays Concrete. 12953_ K-01 Serf collects debris. 12953_ Penetrated by Slug. 12953_ U-05 Engineer lays Concrete. 12956_ Fusion Modulator explodes. 12956_ Destroyed Hpw. Shock Rifle. 12956_ P-70 Sage destroyed. Map ----- +----------------------------------------------------+ | % #???????????????????????????????????????? | | %%% % ###?????????????????????????????????????? | | %% %%%#[#?????????????????????????????????????? | | #######+####?????????????????????????????????????? | | = #?????????????????????????????????????? | | #?????????????????????????????????????? | | #####?????????????????????????????????? | | + #?????????????????????????????????? | | """ """ ### #?????????????????????????????????? | | """ """%#?# #?##??????????????????????????????? | | """ """ ###/## #######????????????????????????? | | # #????????????????????????? | | """ """%# #????????????????????????? | | """ """ # """"" #????????????????????????? | | """ """ # """"" #????????????????????????? | | %% # "" #????????????????????????? | | #######+#### #????????????????????????? | | # """"" #????????????????????????? | | # """"" #????????????????????????? | | # "" #????????????????????????? | | # #????????????????????????? | | # k ????????????????????????? | | ###### # ! ###?#?????? """?????????? | | ?????# ###/# [ # ### # ?????????? | | ?????# |=! % %= ! =% %h! ""???????????? | | ?????# ![ % !* @% ! !!= "G???????????? | | ?????# =[% % ] ! " ?????????? | | ?????# % =% !%[ Y!! ????????? | | ?????# == k [ %uu ?????????? | | ?????#########/# # #?????????? | | ???????????? %* # ??????????? | | ?????????? ; # " ??????????? | | ??????????""""""""" ; ;## ???????????? | | ????????? ; ;#?????????????? | | ??????????"""""?""? ;; ????????????? | | ???????????? ? ? ;; ????????????? | | ?????????????????"" ; ;# ????????????? | | ?????????????????? ; ;??????????????? | | ??????????????????" ; ????????????????? | | ?????????????????????# ???????????????????? | | ??????????????????????? ?????????????????????? | | ?????????????????????????????????????????????????? | | ?????????????????????????????????????????????????? | | ?????????????????????????????????????????????????? | | ?????????????????????????????????????????????????? | | ?????????????????????????????????????????????????? | | ?????????????????????????????????????????????????? | | ?????????????????????????????????????????????????? | | ?????????????????????????????????????????????????? | | ?????????????????????????????????????????????????? | +----------------------------------------------------+ Best States ------------- Heat Dissipation 100 Coolant Potential 130 Energy Generation 31 Energy Capacity 290 Matter Stores 300 Matter Capacity 300 Sight Range 16 Robot Scan Range 13 Terrain Scan Density 10 EM Shielding 3 Armor Coverage 450 Evasion (%) 40 Targeting Accuracy 14 Armor Integrity Analysis 66 Recoil Reduction 4 Offensive Hacking 10 Item Schematics ----------------- Combat Drone Bay | -6/Data Miner | Free Lgt. Regenerative Plating | -6/Data Miner | Free Exp. Targeting Computer | -6/Data Miner | Free Tactical Coordination Suite | -6/Data Miner | Free Cloaking Device | -6/Data Miner | Free Mni. Smartbomb Launcher | -6/Data Miner | Free Plasma Sword | -6/Data Miner | Free Robot Schematics ------------------ S-27 Virus | -6/Data Miner | Free G-50 Soldier | -6/Data Miner | Free G-67 Veteran | -6/Data Miner | Free X-72 Disruptor | -6/Data Miner | Free H-66 Slayer | -6/Data Miner | Free I-36 Angel | -6/Data Miner | Free Fabricated ------------ Mni. Smartbomb Launcher | x1 | -4/Factory Exp. Targeting Computer | x1 | -4/Factory Alien Tech Used ----------------- Core Expander Achievements -------------- None Challenges ------------ None Game ------ Seed CombatArmoredClaw Manual? 0 Play Time 01:17:40 Cumulative 544.0 hours Start 2019.10.27 @ 17:17:54 End 2019.10.27 @ 18:35:31 Sessions 1 Manual Loads 0 Difficulty Rogue Special Mode None Game No. 487 Rogue 407 Adventurer 40 Explorer 0 Win Type - Total 33 Types 22/0/11/0/0/0/0 Lore% 84 Gallery% 89 Achievement% 64 Wizard Run 0 Options --------- ASCII 0 Keyboard 0 Movement Numpad Keybinds 0 Fullscreen 0 Font 16/Terminus Map View 76x50 Tactical HUD 1 Map Filters NONE Filters NONE Steam 1 RUN: 2e2ba320-e399-4e80-bb2f-954dcddf56ff